Cogmind - Beta 11 X10 @@@ ROGUE MODE // 2022.03.15 @ 17:11:10 Player: maxwell Result: Destroyed by L-31 Rogue with Katana Performance ------------- Evolutions (1) 500 Regions Visited (6) 1200 Robots Destroyed (65) 325 Value Destroyed (1305) 1305 Prototype IDs (37) 740 Alien Tech Used (0) 0 Bonus (-376) -376 TOTAL SCORE: 3694 Bonus ------- High Alert Combat Kills 27 Follower Combat Kills 99 Aligned with FarCom 300 Friendly Fire -802 Cogmind --------- Core Integrity 0/400 Matter 40/300 Energy 310/310 System Corruption 0% Temperature Cool (0) Movement Treading (480) Ox4 Location -8/Mines Parts ------- > --- POWER (1) -------- Heavy Deuterium Engine > --- PROPULSION (3) --- Light Treads Advanced Myomer Leg Advanced Myomer Leg > --- UTILITY (2) ------ Huge Storage Unit Experimental Core Analyzer > --- WEAPON (3) ------- 8R-AWN's Boregun > --- INVENTORY (25) --- Light Treads Experimental Heat Sink High-capacity Storage Unit Gravity Neutralizer Structural Scanner Experimental Sensor Array 0b10 Alert Chip Experimental Targeting Computer Advanced Launcher Guidance Computer Improved Target Analyzer Advanced Weapon Cycler Advanced Transmission Jammer Improved System Guard System Purifier High-powered Tractor Beam Advanced Recalibrator Supersonic Drone Bay (1/1) AS-neutralizer No. 17b XL Autogun Array Grenade Launcher Grenade Launcher Deploy-a-Sentry Peak State ------------ > --- POWER ------------ Heavy Deuterium Engine > --- PROPULSION ------- Light Treads Advanced Myomer Leg Advanced Myomer Leg > --- UTILITY ---------- Huge Storage Unit Experimental Core Analyzer > --- WEAPON ----------- Heavy Assault Rifle 8R-AWN's Boregun > --- INVENTORY -------- Light Treads Experimental Heat Sink High-capacity Storage Unit Gravity Neutralizer Structural Scanner Experimental Sensor Array 0b10 Alert Chip Experimental Targeting Computer Advanced Launcher Guidance Computer Improved Target Analyzer Advanced Weapon Cycler Advanced Transmission Jammer Improved System Guard System Purifier High-powered Tractor Beam Advanced Recalibrator Supersonic Drone Bay AS-neutralizer No. 17b XL Autogun Array Grenade Launcher Grenade Launcher Deploy-a-Sentry [Rating: 59] Favorites ----------- Power Cooled Ion Engine Engine Cooled Ion Engine Propulsion Light Treads Treads Light Treads Leg Advanced Myomer Leg Utility Huge Storage Unit Device Shield Generator Storage Huge Storage Unit Processor Experimental Core Analyzer Protection Reflective Plating Weapon Heavy Assault Rifle Ballistic Gun Heavy Assault Rifle Launcher Grenade Launcher Build | -11 -10 -10 -9 -9 -9 -8 ------- Run | Scr Mat Min Mat Min Exi Min Slots Evolved 2 | . . . 2 . . . Power . | . . . . . . . Propulsion 1 | . . . 1 . . . Utility . | . . . . . . . Weapon 1 | . . . 1 . . . Parts Attached 55 | 6 5 1 16 1 26 . Power 6 | 1 . 1 2 . 2 . Engine 6 | 1 . 1 2 . 2 . Core . | . . . . . . . Reactor . | . . . . . . . Propulsion 18 | 2 . . 7 . 9 . Treads 16 | 2 . . 7 . 7 . Leg 2 | . . . . . 2 . Wheel . | . . . . . . . Hover . | . . . . . . . Flight . | . . . . . . . Utility 11 | 1 3 . 2 . 5 . Device 2 | . 1 . . . 1 . Storage 4 | 1 2 . 1 . . . Processor 2 | . . . . . 2 . Hackware . | . . . . . . . Protection 3 | . . . 1 . 2 . Artifact . | . . . . . . . Weapon 20 | 2 2 . 5 1 10 . Energy Gun . | . . . . . . . Energy Cannon . | . . . . . . . Ballistic Gun 17 | 2 2 . 4 1 8 . Ballistic Cannon . | . . . . . . . Launcher 3 | . . . 1 . 2 . Special Weapon . | . . . . . . . Impact Weapon . | . . . . . . . Slashing Weapon . | . . . . . . . Piercing Weapon . | . . . . . . . Special Melee Weapon . | . . . . . . . Unidentified Prototypes 6 | . . . 1 . 5 . Parts Lost 19 | . . 1 . . 18 . Power 2 | . . 1 . . 1 . Propulsion 7 | . . . . . 7 . Utility 3 | . . . . . 3 . Weapon 7 | . . . . . 7 . Highest Loss Streak 13 | . . 1 . . 13 . To Critical Strikes 5 | . . . . . 5 . Average Slot Usage (%) 92 | . 95 99 99 100 80 87 Engine 11 | . 14 13 10 11 8 11 Treads 29 | . 28 28 33 33 26 11 Leg 1 | . . . . . 2 22 Device 4 | . 9 14 6 . . . Storage 11 | . 14 14 11 11 11 11 Processor 1 | . . . . . 3 11 Protection 3 | . . . 4 11 2 . Ballistic Gun 28 | . 27 28 32 33 24 21 Naked Turns . | . . . . . . . Heaviest Build 101 | 11 51 51 101 101 101 100 Greatest Support 60 | 40 40 40 60 60 60 60 Greatest Overweight (x) 3 | . 1 1 1 1 3 1 Average Overweight (x) . | . . 1 . 1 1 1 Largest Inventory Capacity 25 | 8 20 20 25 25 25 25 Average Capacity 22 | 6 12 20 21 25 25 25 Most Carried 25 | 3 15 20 25 25 25 25 Average Carried 19 | 1 8 18 20 24 18 25 Final Capacity 25 | 8 20 20 25 25 25 25 Final Carried 25 | 3 15 20 25 25 25 25 Class Distribution -------------------- 38% | Mutant 36% | Scavenger-Tank 14% | Scavenger-Mutant 5% | Tank 4% | Scavenger-Gunner Dominant Class ---------------- Mutant | -10/Materials Mutant | -10/Mines Scavenger-Tank | -9/Materials Scavenger-Tank | -9/Mines Scavenger-Mutant | -9/Exiles Scavenger-Mutant | -8/Mines Resources | -11 -10 -10 -9 -9 -9 -8 ----------- Run | Scr Mat Min Mat Min Exi Min Matter Collected 2455 | 171 158 489 744 70 823 . Remotely . | . . . . . . . Salvage Created 2455 | . 273 135 1241 128 622 56 Parts 213 | . 22 7 88 8 86 2 Haulers Intercepted 4 | . 1 . 3 . . . Recyclers Shooed 5 | . 1 2 2 . . . Parts Field Recycled . | . . . . . . . Retrieved Matter . | . . . . . . . Parts Self-Destructed . | . . . . . . . Prevented . | . . . . . . . Kills | -11 -10 -10 -9 -9 -9 -8 ------- Run | Scr Mat Min Mat Min Exi Min Combat Hostiles Destroyed 44 | . 9 5 21 4 4 1 Guns 41 | . 9 5 21 4 1 1 AOE 3 | . . . . . 3 . Classes Destroyed 12 | . 4 . 4 1 3 . Worker 3 | . . . 3 . . . Hauler 4 | . 1 . 3 . . . Recycler 3 | . . . 3 . . . Turret 1 | . . . . . 1 . Watcher 3 | . 1 . 2 . . . Swarmer 17 | . 6 3 8 . . . Grunt 13 | . 3 2 5 2 . 1 Brawler 2 | . . . 1 1 . . Sentry 7 | . . . 7 . . . Demolisher 1 | . . . . 1 . . Zionite 8 | . . . . . 8 . Assembled 7 | . . . . . 7 . Best Kill Streak 6 | . 4 3 6 3 3 1 Combat Bots Only 4 | . 4 3 4 3 3 1 Max Kills in Single Turn 4 | . 2 1 2 1 4 1 Gunslinging 1 | . 1 . 1 . . . Exploded 1 | . . . . . 1 . Melee . | . . . . . . . Uniques/NPCs Destroyed 4 | . . . . . 4 . 8R-AWN (-9/Exiles) EX-DEC (-9/Exiles) EX-BIN (-9/Exiles) EX-HEX (-9/Exiles) Combat | -11 -10 -10 -9 -9 -9 -8 -------- Run | Scr Mat Min Mat Min Exi Min Damage Taken 3544 | . 353 162 516 48 2173 292 Core 522 | . 78 36 46 . 264 98 Absorbed by Shields 167 | . 21 69 77 . . . Core Remaining (%) 77 | 100 . 54 . . . . Volleys Fired 232 | . 29 24 58 5 108 8 Largest 3 | . 2 2 3 3 3 2 Hottest 69 | . 46 46 69 69 69 53 Shots Fired 492 | . 58 48 168 15 192 11 Gun 479 | . 58 48 165 15 182 11 Cannon . | . . . . . . . Launcher 13 | . . . 3 . 10 . Special . | . . . . . . . Kinetic 479 | . 58 48 165 15 182 11 Thermal . | . . . . . . . Explosive 13 | . . . 3 . 10 . Electromagnetic . | . . . . . . . Robot Hit Streak 20 | . 13 5 20 4 10 2 Robot Miss Streak 7 | . 4 3 7 1 5 5 Penetration Max 1 | . . . . . 1 1 Secondary Targets 7 | . 1 . 6 . . . Max Gunslinging Chain 1 | . 1 . 1 . . . Shots Hit Robots 290 | . 41 23 97 10 116 3 Core Hits 141 | . 18 10 47 8 57 1 Critical Kills 7 | . . . . . 6 1 Critical Parts Destroyed 7 | . . . . . 5 2 Critical Strikes 14 | . . . . . 11 3 Destroy 14 | . . . . . 11 3 Melee Attacks . | . . . . . . . Impact . | . . . . . . . Slashing . | . . . . . . . Piercing . | . . . . . . . Sneak Attacks . | . . . . . . . Combat Hostiles . | . . . . . . . Follow-up Attacks . | . . . . . . . Damage Inflicted 5117 | . 491 439 1531 201 2307 148 Guns 4500 | . 486 427 1531 150 1771 135 Cannons . | . . . . . . . Explosions 536 | . . . . . 536 . Melee . | . . . . . . . Ramming 81 | . 5 12 . 51 . 13 Kinetic 4500 | . 486 427 1531 150 1771 135 Thermal . | . . . . . . . Explosive 536 | . . . . . 536 . Electromagnetic . | . . . . . . . Impact . | . . . . . . . Slashing . | . . . . . . . Piercing . | . . . . . . . Highest Corruption 1 | . 1 1 . . . . Average Corruption 1 | . 1 1 . . . . Corruption Purged . | . . . . . . . Corruption Blocked . | . . . . . . . Effects 12 | . 4 8 . . . . Message Errors 1 | . . 1 . . . . Matter Fused 3 | . 2 1 . . . . Heat Flow Errors 1 | . . 1 . . . . Energy Discharges 4 | . 2 2 . . . . Data Loss (minor) 2 | . . 2 . . . . Alerts 1 | . . 1 . . . . Overload Shots . | . . . . . . . Overflow Damage . | . . . . . . . Projectiles . | . . . . . . . Explosions . | . . . . . . . Melee . | . . . . . . . Knockbacks 1 | . . . . 1 . . Impact 1 | . . . . 1 . . Kinetic . | . . . . . . . Secondary . | . . . . . . . Self-Inflicted Damage 38 | . . . . . 38 . Shots 1 | . . . . . 1 . Rammed 9 | . 1 3 . 5 . . Targets Rammed 11 | . 1 3 . 5 . 2 Kicked 2 | . . . . . . 2 Crushed . | . . . . . . . Highest Temperature 192 | . 46 192 132 36 15 15 Average Temperature 22 | . 18 66 22 18 7 6 Received Heat Transfer 515 | . 155 62 196 30 . 72 Siege Activations . | . . . . . . . Robots Corrupted . | . . . . . . . Combat Hostiles . | . . . . . . . Parts Fried . | . . . . . . . Impact Corruptions . | . . . . . . . Robots Melted . | . . . . . . . Combat Hostiles . | . . . . . . . Parts Melted . | . . . . . . . Heat Transferred . | . . . . . . . Parts Sabotaged . | . . . . . . . Parts Stolen . | . . . . . . . Parts Stripped . | . . . . . . . Power Chain Reactions . | . . . . . . . Missiles Intercepted . | . . . . . . . Alert | -11 -10 -10 -9 -9 -9 -8 ------- Run | Scr Mat Min Mat Min Exi Min Peak Influence 595 | . 244 58 595 278 . 22 Initial 196 | . . . 22 196 . . Average 106 | . 117 18 327 75 . . Maximum Alert Level 2 | . 1 . 2 1 . . Low Security (%) 76 | 100 78 100 13 83 . 100 Level 1 18 | . 21 . 53 16 . . Level 2 5 | . . . 33 . . . Level 3 . | . . . . . . . Level 4 . | . . . . . . . Level 5 . | . . . . . . . High Security . | . . . . . . . Max Security . | . . . . . . . Squads Dispatched 4 | . 2 . 2 . . . Investigation 3 | . 2 . 1 . . . Extermination . | . . . . . . . Reinforcement 1 | . . . 1 . . . Assault . | . . . . . . . Garrison . | . . . . . . . Intercept . | . . . . . . . Construction Impeded . | . . . . . . . Haulers Reinforced . | . . . . . . . Active Scanning Responses . | . . . . . . . Cargo Convoy Interrupts . | . . . . . . . Stealth | -11 -10 -10 -9 -9 -9 -8 --------- Run | Scr Mat Min Mat Min Exi Min Distress Signals 4 | . 1 . 3 . . . Communications Jammed . | . . . . . . . Distress Signals . | . . . . . . . Times Spotted 108 | . 17 8 32 4 44 3 Peak Tracking Total 9 | . 5 2 9 2 4 3 Tactical Retreats 9 | . . 1 . . 8 . Traps | -11 -10 -10 -9 -9 -9 -8 ------- Run | Scr Mat Min Mat Min Exi Min Traps Triggered 2 | . 2 . . . . . Indirectly . | . . . . . . . Trap Hack Attempts . | . . . . . . . Triggered . | . . . . . . . Disarmed . | . . . . . . . Reprogrammed . | . . . . . . . Reused . | . . . . . . . Traps Extracted . | . . . . . . . Installed . | . . . . . . . Triggered . | . . . . . . . Most Traps Carried 3 | . . 3 3 . . . Machines | -11 -10 -10 -9 -9 -9 -8 ---------- Run | Scr Mat Min Mat Min Exi Min Machines Disabled 17 | . . 1 3 . 13 . Max in Single Turn 2 | . . 1 1 . 2 . Machines Sabotaged . | . . . . . . . Garrisons Compromised . | . . . . . . . Overloaded Fab Kills . | . . . . . . . Hacking | -11 -10 -10 -9 -9 -9 -8 --------- Run | Scr Mat Min Mat Min Exi Min Machines Accessed 14 | . 7 . 4 1 2 . Terminals 9 | . 6 . 2 1 . . Fabricators . | . . . . . . . Repair Stations . | . . . . . . . Recycling Units 2 | . 1 . 1 . . . Scanalyzers 1 | . . . 1 . . . Garrison Access . | . . . . . . . Total Hacks 48 | . 22 . 18 6 2 . Successful 27 | . 11 . 10 4 2 . Failed 20 | . 10 . 8 2 . . Catastrophic . | . . . . . . . Database Lockouts 1 | . 1 . . . . . Manual 36 | . 18 . 10 7 1 . Terminals 36 | . 19 . 11 6 . . Fabricators . | . . . . . . . Repair Stations . | . . . . . . . Recycling Units 6 | . 3 . 3 . . . Scanalyzers 4 | . . . 4 . . . Garrison Access . | . . . . . . . Terminal Hacks 14 | . 6 . 2 4 2 . Record 1 | . . . . . 1 . Part Schematic 1 | . 1 . . . . . Robot Analysis 3 | . 2 . . 1 . . Prototype ID Bank 5 | . 2 . . 3 . . Branch Access Points 1 | . . . 1 . . . Terminal Index 2 | . 1 . 1 . . . EX-Prototype ID Bank 1 | . . . . . 1 . Fabricator Hacks . | . . . . . . . Repair Station Hacks . | . . . . . . . Recycling Unit Hacks 2 | . 1 . 1 . . . Retrieve Components 2 | . 1 . 1 . . . Scanalyzer 4 | . . . 4 . . . Insert Component 2 | . . . 2 . . . Analyze 2 | . . . 2 . . . Garrison Access Hacks . | . . . . . . . Unauthorized Hacks 7 | . 4 . 3 . . . Terminals 5 | . 3 . 2 . . . Botnet 3 | . 2 . 1 . . . Operators 2 | . 1 . 1 . . . Fabricators . | . . . . . . . Repair Stations . | . . . . . . . Recycling Units 2 | . 1 . 1 . . . Tunnel 2 | . 1 . 1 . . . Scanalyzers . | . . . . . . . Garrison Access . | . . . . . . . Data Cores Recovered . | . . . . . . . Used . | . . . . . . . Hacking Detections 10 | . 6 . 3 1 . . Full Trace Events 1 | . 1 . . . . . Feedback Events . | . . . . . . . Feedback Blocked . | . . . . . . . Robot Schematics Acquired . | . . . . . . . Robots Built . | . . . . . . . Authchips . | . . . . . . . Time . | . . . . . . . Total Robot Build Rating . | . . . . . . . Part Schematics Acquired 3 | . 1 . 2 . . . Parts Built . | . . . . . . . Authchips . | . . . . . . . Time . | . . . . . . . Total Part Build Rating . | . . . . . . . Parts Repaired . | . . . . . . . Time . | . . . . . . . Parts Recycled . | . . . . . . . Recycled Matter . | . . . . . . . Retrieved Matter . | . . . . . . . Retrieved Components 8 | . . . 8 . . . Parts Scanalyzed 2 | . . . 2 . . . Part Schematics Acquired 2 | . . . 2 . . . Parts Damaged . | . . . . . . . Bothacking | -11 -10 -10 -9 -9 -9 -8 ------------ Run | Scr Mat Min Mat Min Exi Min Used RIF Installer . | . . . . . . . Robots Hacked . | . . . . . . . Non-combat . | . . . . . . . Combat . | . . . . . . . Robot Hacks Applied . | . . . . . . . Relay Couplers Released . | . . . . . . . Fabnet Peak Effective % . | . . . . . . . Robots Rewired . | . . . . . . . Allies Hacked . | . . . . . . . Hacks Repelled . | . . . . . . . Allies | -11 -10 -10 -9 -9 -9 -8 -------- Run | Scr Mat Min Mat Min Exi Min Total Allies 3 | . . 3 . . . . Largest Group 3 | . . 3 3 . . . Highest-Rated Group 40 | . . 40 40 . . . Highest-Rated Ally 16 | . . 16 16 . . . Total Orders . | . . . . . . . Ally Attacks 13 | . . 5 8 . . . Total Damage 165 | . . 64 101 . . . Kills 6 | . . 2 4 . . . Allies Corrupted . | . . . . . . . Allies Melted . | . . . . . . . Intel | -11 -10 -10 -9 -9 -9 -8 ------- Run | Scr Mat Min Mat Min Exi Min Robot Analysis Total 3 | . 2 . . 1 . . Derelict Logs Recovered 4 | . . 2 . 2 . . Drone Launches . | . . . . . . . Drone Recoveries . | . . . . . . . Exploration | -11 -10 -10 -9 -9 -9 -8 ------------- Run | Scr Mat Min Mat Min Exi Min Turns Passed 7794 | 75 842 1523 920 1859 2451 124 Spaces Moved 2978 | 44 435 599 350 660 837 53 Core 6 | 6 . . . . . . Treads 2752 | 38 435 599 350 660 670 . Legs 220 | . . . . . 167 53 Wheels . | . . . . . . . Hover . | . . . . . . . Flight . | . . . . . . . Fastest Speed 50 | 50 160 240 160 240 190 190 Average Speed 223 | 145 166 240 190 240 249 190 Slowest Speed 330 | 160 240 240 240 240 330 190 Overloaded Moves . | . . . . . . . Propulsion Burnouts . | . . . . . . . Robots Hopped . | . . . . . . . Cave-ins Triggered . | . . . . . . . Exploration Rate (%) 61 | 5 73 96 53 99 86 18 Regions Visited 6 Branch Regions 4 Pre-discovered Areas 4 | . 1 . 1 1 1 . Known Exits Taken 1 | . . . 1 . . . Unknown Exits Taken 5 | 1 1 1 . 1 1 . Scrap Searched 2 | . . 1 . 1 . . Spaces Dug . | . . . . . . . Terrain Destroyed 60 | . . . 24 . 34 2 Melee . | . . . . . . . Projectile 13 | . . . . . 11 2 AOE 47 | . . . 24 . 23 . Terrain Rammed . | . . . . . . . Walls Destroyed . | . . . . . . . Machines Disabled . | . . . . . . . Actions | -11 -10 -10 -9 -9 -9 -8 --------- Run | Scr Mat Min Mat Min Exi Min Total 3706 | 52 498 634 498 919 1042 63 Wait 311 | . 5 1 15 247 43 . Move 2972 | 43 434 598 349 659 836 53 Hop . | . . . . . . . Pick Up 72 | 3 16 6 29 1 17 . Fast Attach 19 | 6 3 1 2 . 7 . Attach 19 | . . . 4 1 14 . Detach 2 | . . . . . 2 . Swap 17 | . 2 . 10 . 5 . Drop 51 | . 8 1 31 1 10 . Fire 232 | . 29 24 58 5 108 8 Melee . | . . . . . . . Ram . | . . . . . . . Kick 2 | . . . . . . 2 Crush 9 | . 1 3 . 5 . . Escape Stasis . | . . . . . . . Rewire . | . . . . . . . Trap . | . . . . . . . Miscellaneous . | . . . . . . . Route ------- -11/Scrapyard -10/Materials (discovered 3 exits: *Mat x2 / [*Min]) -10/Mines (discovered 2 exits: *Mat x2) -9/Materials (discovered 3 exits: Mat / *Min x2) -9/Mines (discovered 4 exits: *Mat x2 / *Exi / [*Zio]) -9/Exiles -8/Mines History --------- Turn | Location | Event 7 | -11/Scrapyard | Discovered new exit (range 16) 76 | -11/Scrapyard | Entered Materials 305 | -10/Materials | Build established: Mutant 418 | -10/Materials | Discovered new exit (range 15) 551 | -10/Materials | Discovered new exit (range 12) 671 | -10/Materials | Discovered new exit (range 10) 858 | -10/Materials | Central database locked down 918 | -10/Materials | Entered Mines 947 | -10/Mines | Found a damaged Exp. Sensor Array with a note attached 952 | -10/Mines | Found Prototype Device 1247 | -10/Mines | Learned 2 Materials zone layouts 1247 | -10/Mines | Discovered new exit (range 6) 1361 | -10/Mines | Found a hidden stash of uninstalled traps 1956 | -10/Mines | Learned 2 Materials zone layouts 2173 | -10/Mines | Assisted by bots powering up and referring to "LRC-V3" 2384 | -10/Mines | Discovered new exit (range 13) 2441 | -10/Mines | Entered Materials 2441 | -9/Materials | Accompanied by 3 allies 2441 | -9/Materials | Evolved 2 slots: Propulsion x1, Weapon x1 2442 | -9/Materials | Identified exit to Materials 2636 | -9/Materials | Identified Exp. Sensor Array 2742 | -9/Materials | Discovered new exit (range 10) 2744 | -9/Materials | Build established: Tank 2759 | -9/Materials | Identified exit to Mines 3180 | -9/Materials | Build established: Scavenger-Tank 3361 | -9/Materials | Entered Mines 3402 | -9/Mines | A weapon hastily lodged in a ceiling crevice suddenly fell to the ground 3474 | -9/Mines | Discovered exit to Materials (range 8) 3674 | -9/Mines | Learned Materials terminal intel 3813 | -9/Mines | Deemed a non-threat by the Exiles lab entrance 3813 | -9/Mines | Discovered new exit (range 5) 3917 | -9/Mines | Assembled infested the area 4376 | -9/Mines | Learned location of Storage (-8) 4380 | -9/Mines | Learned 2 Materials zone layouts 4389 | -9/Mines | Discovered exit to Materials (range 3) 4467 | -9/Mines | A Derelict revealed a hidden shortcut to a safe place 5220 | -9/Mines | Entered Exiles 5280 | -9/Exiles | Met 8R-AWN 5319 | -9/Exiles | Met EX-HEX 5415 | -9/Exiles | Met EX-DEC 5424 | -9/Exiles | Learned location of Zion (-7) 5633 | -9/Exiles | Met EX-BIN 5660 | -9/Exiles | Aligned with FarCom system 5662 | -9/Exiles | Given EX-Vault access code 5720 | -9/Exiles | Opened EX-Vault 5741 | -9/Exiles | Found Supersonic Drone Bay 5787 | -9/Exiles | Warned to stay clear of 0b10 Research branches 5909 | -9/Exiles | Attacked by the Exiles 5987 | -9/Exiles | Lost 4 parts (2n2w) 6009 | -9/Exiles | Destroyed 8R-AWN 6052 | -9/Exiles | Build established: Scavenger-Gunner 6113 | -9/Exiles | Core integrity fell below 50% 6197 | -9/Exiles | Lost 13 parts (1p4n3u5w) 6381 | -9/Exiles | Found Prototype Ballistic Gun 6381 | -9/Exiles | Identified 8R-AWN's Boregun 6402 | -9/Exiles | Build established: Mutant 7000 | -9/Exiles | Build established: Scavenger-Mutant 7005 | -9/Exiles | Destroyed EX-DEC 7044 | -9/Exiles | Destroyed EX-BIN 7079 | -9/Exiles | Destroyed EX-HEX 7103 | -9/Exiles | Found Deploy-a-Sentry 7150 | -9/Exiles | Found Prototype Processor 7157 | -9/Exiles | Found Prototype Device 7157 | -9/Exiles | Identified System Purifier 7318 | -9/Exiles | Identified Exp. Core Analyzer 7321 | -9/Exiles | Found Prototype Device 7331 | -9/Exiles | Found Prototype Processor 7487 | -9/Exiles | Found 0b10 Alert Chip 7491 | -9/Exiles | Found XL Autogun Array 7650 | -9/Exiles | Discovered new exit (range 14) 7671 | -9/Exiles | Stole four prototypes: 0b10 Alert Chip, Supersonic Drone Bay, XL Autogun Array, Deploy-a-Sentry 7671 | -9/Exiles | Entered Mines 7779 | -8/Mines | Core integrity fell below 20% 7795 | -8/Mines | Destroyed by L-31 Rogue with Katana Last Messages --------------- 07779_ Destroyed Aluminum Leg. 07782_ HV Slug penetrates Wall. 07782_ Hvy. Assault Rifle severed. 07782_ K-01 Serf collects debris. 07785_ HV Slug penetrates Wall. 07786_ K-01 Serf collects debris. 07787_ HV Slug penetrates G-47 Trooper. 07787_ HV Slug penetrates Wall. 07789_ HV Slug penetrates Earth. 07790_ K-01 Serf collects debris. 07791_ HV Slug penetrates G-47 Trooper. 07791_ G-47 Trooper suffers critical hit (Destroy). 07791_ G-47 Trooper destroyed. 07791_ HV Slug penetrates Wall. 07793_ K-01 Serf collects debris. 07793_ HV Slug penetrates L-31 Rogue. 07793_ HV Slug penetrates G-47 Trooper. 07793_ G-47 Trooper suffers critical hit (Destroy). 07793_ Destroyed Lgt. Nuclear Core. 07793_ R-06 Scavenger collects Particle Gun. Map ----- +----------------------------------------------------+ | | | ?????????????????????????????????????????????????? | | ?????????????????????????????????????????????????? | | ?????????????????????????????????????????????????? | | ?????????????????????????????????????????????????? | | ?????????????????????????????????????????????????? | | ?????????????????????????????????????????????????? | | ?????????????????????????????????????????????????? | | ?????????????????????????????????????????????????? | | ?????????????????????????????????????????????##### | | ?????????????????????????????????????????????# | | ?????????????????????????????????????????????# ### | | ?????????????????????????????????????????????# #?? | | ???????????????????????????????############??# #?? | | ???????????????????????????????# #??# #?? | | ???????????????????????????????# """ """ #??# #?? | | ???????????????????????????????# """ """ #??# #?? | | ???????????????????????????????# """ """ #?## ### | | ????????????????????????######## #?# | | ????????????????????????# """ """ #?# | | ????????????????????????# ##### """ """ #?# ### | | ????????????????????????# #???# """ """ ### #?? | | ????????????????????????# #???# #??? | | ????????????????????????# #???# ## ##??? | | ????????????????????????# #???# ## #???? | | ????????????????????????#@=#???# ## #???? | | ???????????????????????#;l%#???############# #???? | | ???????????????????????## r#???????????????# ???? | | ????????????????????????# #???????????????###???? | | ????????????????????????; g ?????????????????????? | | ????????????????????????# ????????????????????? | | ???????????????????????? ???????????????????? | | ???????????????????????? k ???????????????????? | | ????????????????????????k ??????????????????? | | ????????????????????????# ## ?????????????????? | | ?????????????????????????####? #????????????????? | | ??????????????????????????????? #????????????????? | | ??????????????????????????????? #????????????????? | | ???????????????????????????????? ????????????????? | | ?????????????????????????????????????????????????? | | ?????????????????????????????????????????????????? | | ?????????????????????????????????????????????????? | | ?????????????????????????????????????????????????? | | ?????????????????????????????????????????????????? | | ?????????????????????????????????????????????????? | | ?????????????????????????????????????????????????? | | ?????????????????????????????????????????????????? | | ?????????????????????????????????????????????????? | | ?????????????????????????????????????????????????? | | ?????????????????????????????????????????????????? | +----------------------------------------------------+ Best States ------------- Heat Dissipation 28 Energy Generation 18 Energy Capacity 310 Matter Stores 300 Matter Capacity 300 Sight Range 16 Terrain Scan Density 10 Armor Coverage 150 Resistance: TH 10 Evasion (%) 40 Core Analysis 8 Recoil Reduction 3 Salvage Targeting 1 Item Schematics ----------------- Huge Storage Unit | -10/Materials | Hacked Structural Scanner | -9/Materials | Scanalyzed Exp. Sensor Array | -9/Materials | Scanalyzed Robot Schematics ------------------ None Fabricated ------------ Nothing Alien Tech Used ----------------- None Achievements -------------- None Challenges ------------ None Game ------ Seed ThunderTrackerShielding Manual? 0 Play Time 00:23:25 Cumulative 203.1 hours Start 2022.03.15 @ 16:30:36 End 2022.03.15 @ 17:11:10 Sessions 3 Manual Loads 0 Difficulty Rogue Special Mode None Game No. 309 Rogue 287 Adventurer 4 Explorer 18 Win Type - Total 10 Types 8/0/0/2/0/0/0/0/0 Lore% 69 Gallery% 86 Achievement% 70 Wizard Run 0 Options --------- ASCII 0 Keyboard 1 Movement Numpad Keybinds 0 Fullscreen 1 Font 18/SmallcapsGlow Map View 76x50 Tactical HUD 1 Map Filters NONE Filters NONE Steam 1 RUN: cd041ac9-4b59-4996-9ebe-68d06d50177b